[Event "*** Titled Tuesday Blitz"]
[Site "Chess.com"]
[Date "2020.04.07"]
[Round "8"]
[White "tteshan"]
[Black "AEMEffi"]
[Result "1-0"]
[WhiteElo "2207"]
[BlackElo "2322"]
[TimeControl "180+1"]
[EndTime "14:32:40 PDT"]
[Termination "tteshan won by resignation"]

1. e4 {[%clk 0:03:00.9]} 1... e5 {[%clk 0:02:58.3]} 2. Nf3 {[%clk 0:03:00.1]}
2... Nc6 {[%clk 0:02:58.8]} 3. Bb5 {[%clk 0:03:00.2]} 3... Nf6 {[%clk
0:02:58.3]} 4. O-O {[%clk 0:02:59.7]} 4... Nxe4 {[%clk 0:02:58.1]} 5. Re1 {[%clk
0:02:59.6]} 5... Nd6 {[%clk 0:02:57.9]} 6. Bxc6 {[%clk 0:02:58.8]} 6... dxc6
{[%clk 0:02:58.8]} 7. Nxe5 {[%clk 0:02:59.3]} 7... Be7 {[%clk 0:02:59.3]} 8. d4
{[%clk 0:02:59.6]} 8... O-O {[%clk 0:02:59.8]} 9. Nc3 {[%clk 0:03:00.1]} 9...
Bf6 {[%clk 0:02:50.2]} 10. Bf4 {[%clk 0:02:58.8]} 10... Bf5 {[%clk 0:02:44.5]}
11. Qf3 {[%clk 0:02:50.7]} 11... Bxc2 {[%clk 0:02:24.4]} 12. Rac1 {[%clk
0:02:40.5]} 12... Bg6 {[%clk 0:02:18.6]} 13. d5 {[%clk 0:02:25.5]} 13... c5
{[%clk 0:02:11.4]} 14. g3 {[%clk 0:02:10.9]} 14... a5 {[%clk 0:02:03.2]} 15. h4
{[%clk 0:02:11]} 15... Bxe5 {[%clk 0:01:53.1]} 16. Bxe5 {[%clk 0:02:09.6]} 16...
f6 {[%clk 0:01:52]} 17. Bf4 {[%clk 0:02:08.5]} 17... Re8 {[%clk 0:01:36.5]} 18.
h5 {[%clk 0:02:07.3]} 18... Bf7 {[%clk 0:01:35.9]} 19. h6 {[%clk 0:01:59.9]}
19... g6 {[%clk 0:01:26]} 20. Bxd6 {[%clk 0:01:58.5]} 20... cxd6 {[%clk
0:01:18.7]} 21. Ne4 {[%clk 0:01:58.4]} 21... f5 {[%clk 0:01:15.2]} 22. Qc3
{[%clk 0:01:41.4]} 22... Re5 {[%clk 0:01:05]} 23. Nxd6 {[%clk 0:01:21.5]} 23...
Qxd6 {[%clk 0:00:58.8]} 24. Qxe5 {[%clk 0:01:19.4]} 24... Qf8 {[%clk 0:00:54.7]}
25. Rxc5 {[%clk 0:01:15.5]} 25... Qxh6 {[%clk 0:00:43.4]} 26. Qc3 {[%clk
0:01:00.4]} 26... Qf8 {[%clk 0:00:41.2]} 27. Rc7 {[%clk 0:00:56.4]} 27... Bxd5
{[%clk 0:00:39.5]} 28. Ree7 {[%clk 0:00:51.5]} 1-0

[Event "*** Titled Tuesday Blitz"]
[Site "Chess.com"]
[Date "2020.04.07"]
[Round "8"]
[White "alexwinter25"]
[Black "manubibi"]
[Result "1-0"]
[WhiteElo "2353"]
[BlackElo "2518"]
[TimeControl "180+1"]
[EndTime "14:32:43 PDT"]
[Termination "alexwinter25 won by resignation"]

1. e4 {[%clk 0:03:00.9]} 1... c5 {[%clk 0:02:59.2]} 2. Nf3 {[%clk 0:03:00.8]}
2... d6 {[%clk 0:02:58.6]} 3. d4 {[%clk 0:03:00.9]} 3... cxd4 {[%clk 0:02:58.6]}
4. c3 {[%clk 0:03:01.6]} 4... dxc3 {[%clk 0:02:57.4]} 5. Nxc3 {[%clk 0:03:02.5]}
5... Nc6 {[%clk 0:02:56.8]} 6. Bf4 {[%clk 0:03:02.1]} 6... e6 {[%clk 0:02:56.5]}
7. Bd3 {[%clk 0:02:59.8]} 7... Nf6 {[%clk 0:02:56.2]} 8. O-O {[%clk 0:02:57.5]}
8... Be7 {[%clk 0:02:56.4]} 9. Qe2 {[%clk 0:02:57.5]} 9... e5 {[%clk 0:02:54.5]}
10. Be3 {[%clk 0:02:57.4]} 10... O-O {[%clk 0:02:54.9]} 11. h3 {[%clk
0:02:57.3]} 11... h6 {[%clk 0:02:52.6]} 12. Rfd1 {[%clk 0:02:56.6]} 12... Be6
{[%clk 0:02:52.3]} 13. Rac1 {[%clk 0:02:55.2]} 13... Rc8 {[%clk 0:02:50.5]} 14.
Bb1 {[%clk 0:02:53.3]} 14... a6 {[%clk 0:02:46.2]} 15. Nd5 {[%clk 0:02:46.8]}
15... Bxd5 {[%clk 0:02:16.6]} 16. exd5 {[%clk 0:02:47.7]} 16... Nb8 {[%clk
0:02:15.4]} 17. Nh4 {[%clk 0:02:09.7]} 17... Rxc1 {[%clk 0:02:10.1]} 18. Rxc1
{[%clk 0:02:08.1]} 18... Nbd7 {[%clk 0:02:02.2]} 19. Nf5 {[%clk 0:02:00.4]}
19... Re8 {[%clk 0:02:01.6]} 20. Qf3 {[%clk 0:01:50.9]} 20... Bf8 {[%clk
0:01:53.1]} 21. b4 {[%clk 0:01:41.4]} 21... e4 {[%clk 0:01:46]} 22. Qg3 {[%clk
0:01:37.3]} 22... Kh7 {[%clk 0:01:46]} 23. Nxd6 {[%clk 0:01:25.4]} 23... Bxd6
{[%clk 0:01:38.1]} 24. Qxd6 {[%clk 0:01:25.2]} 24... Ne5 {[%clk 0:01:36.3]} 25.
Qc5 {[%clk 0:01:09.5]} 25... Nd3 {[%clk 0:01:19.1]} 26. Bxd3 {[%clk 0:01:02.2]}
26... exd3 {[%clk 0:01:20]} 27. d6 {[%clk 0:00:55.4]} 27... Ne4 {[%clk
0:01:16.6]} 28. Qd5 {[%clk 0:00:48.1]} 28... Qxd6 {[%clk 0:01:13.3]} 29. Qxf7
{[%clk 0:00:47.9]} 29... Rf8 {[%clk 0:01:01.1]} 30. Qc4 {[%clk 0:00:43.8]} 30...
Nf6 {[%clk 0:00:50.3]} 31. Bc5 {[%clk 0:00:42.7]} 31... d2 {[%clk 0:00:49.3]}
32. Bxd6 {[%clk 0:00:40.6]} 1-0

[Event "*** Titled Tuesday Blitz"]
[Site "Chess.com"]
[Date "2020.04.07"]
[Round "8"]
[White "TST2014"]
[Black "DishonorOnYourCow"]
[Result "1-0"]
[WhiteElo "2511"]
[BlackElo "2331"]
[TimeControl "180+1"]
[EndTime "14:32:44 PDT"]
[Termination "TST2014 won on time"]

1. d4 {[%clk 0:03:00.9]} 1... Nf6 {[%clk 0:02:58.2]} 2. c4 {[%clk 0:02:57.9]}
2... g6 {[%clk 0:02:56.1]} 3. Nf3 {[%clk 0:02:55.8]} 3... Bg7 {[%clk 0:02:54]}
4. Nc3 {[%clk 0:02:55.9]} 4... d5 {[%clk 0:02:53.2]} 5. Bg5 {[%clk 0:02:55.2]}
5... Ne4 {[%clk 0:02:51.8]} 6. Bh4 {[%clk 0:02:54.7]} 6... Nxc3 {[%clk
0:02:51.7]} 7. bxc3 {[%clk 0:02:55.6]} 7... dxc4 {[%clk 0:02:52]} 8. Qa4+ {[%clk
0:02:55.5]} 8... Bd7 {[%clk 0:02:44.8]} 9. Qxc4 {[%clk 0:02:54.8]} 9... O-O
{[%clk 0:02:40.9]} 10. e3 {[%clk 0:02:54.4]} 10... b5 {[%clk 0:02:29.5]} 11. Qb3
{[%clk 0:02:50.5]} 11... a6 {[%clk 0:01:45.6]} 12. Be2 {[%clk 0:02:38.3]} 12...
c5 {[%clk 0:01:41.6]} 13. Qd5 {[%clk 0:02:34.9]} 13... Nc6 {[%clk 0:01:23.2]}
14. Qxc5 {[%clk 0:02:34.6]} 14... Rc8 {[%clk 0:01:19.6]} 15. Qa3 {[%clk
0:02:34.4]} 15... Qa5 {[%clk 0:01:01.9]} 16. Bxe7 {[%clk 0:02:23.3]} 16... Rfe8
{[%clk 0:00:56.7]} 17. Qxa5 {[%clk 0:02:17.7]} 17... Nxa5 {[%clk 0:00:57.2]} 18.
Bb4 {[%clk 0:02:13.5]} 18... Nc4 {[%clk 0:00:56.5]} 19. O-O {[%clk 0:02:09.7]}
19... Bf8 {[%clk 0:00:46.2]} 20. Rfc1 {[%clk 0:02:00.7]} 20... Bg4 {[%clk
0:00:19.3]} 21. h3 {[%clk 0:01:56.6]} 21... Bxf3 {[%clk 0:00:18.9]} 22. Bxf3
{[%clk 0:01:56.8]} 22... Rc7 {[%clk 0:00:18.7]} 23. Bd5 {[%clk 0:01:48.1]} 23...
Rec8 {[%clk 0:00:18]} 24. a4 {[%clk 0:01:43.2]} 24... Nb6 {[%clk 0:00:12.8]} 25.
Bxf8 {[%clk 0:01:39.8]} 25... Nxd5 {[%clk 0:00:12.5]} 26. Bc5 {[%clk 0:01:38.1]}
26... Rb7 {[%clk 0:00:07.4]} 27. axb5 {[%clk 0:01:35.1]} 27... axb5 {[%clk
0:00:08.3]} 28. Rab1 {[%clk 0:01:32.5]} 28... Ra8 {[%clk 0:00:06.8]} 29. c4
{[%clk 0:01:32.2]} 29... Nc7 {[%clk 0:00:06]} 30. Bd6 {[%clk 0:01:30.9]} 30...
Rc8 {[%clk 0:00:02.3]} 31. cxb5 {[%clk 0:01:28.1]} 1-0

[Event "*** Titled Tuesday Blitz"]
[Site "Chess.com"]
[Date "2020.04.07"]
[Round "8"]
[White "TregubovP"]
[Black "fpawn"]
[Result "1-0"]
[WhiteElo "2461"]
[BlackElo "2307"]
[TimeControl "180+1"]
[EndTime "14:32:44 PDT"]
[Termination "TregubovP won by resignation"]

1. e4 {[%clk 0:03:00.9]} 1... c5 {[%clk 0:02:38.2]} 2. Nf3 {[%clk 0:03:00.1]}
2... Nc6 {[%clk 0:02:38.4]} 3. c3 {[%clk 0:03:00.4]} 3... Nf6 {[%clk 0:02:37.7]}
4. e5 {[%clk 0:03:00.8]} 4... Nd5 {[%clk 0:02:37.9]} 5. d4 {[%clk 0:03:01.1]}
5... cxd4 {[%clk 0:02:37.5]} 6. cxd4 {[%clk 0:03:00.6]} 6... d6 {[%clk
0:02:37.6]} 7. Bc4 {[%clk 0:03:00.7]} 7... Nb6 {[%clk 0:02:35]} 8. Bb5 {[%clk
0:03:00.7]} 8... dxe5 {[%clk 0:02:35.1]} 9. Nxe5 {[%clk 0:03:01.1]} 9... Bd7
{[%clk 0:02:35.7]} 10. Nxd7 {[%clk 0:03:01.2]} 10... Qxd7 {[%clk 0:02:35.4]} 11.
Nc3 {[%clk 0:03:01.7]} 11... e6 {[%clk 0:02:34.9]} 12. O-O {[%clk 0:03:01]}
12... Rd8 {[%clk 0:02:33.3]} 13. Qg4 {[%clk 0:02:54.7]} 13... Qxd4 {[%clk
0:02:26.7]} 14. Qf3 {[%clk 0:02:50.4]} 14... Be7 {[%clk 0:02:12.7]} 15. Rd1
{[%clk 0:02:43.4]} 15... Qf6 {[%clk 0:01:46.6]} 16. Bxc6+ {[%clk 0:02:42.6]}
16... bxc6 {[%clk 0:01:43.6]} 17. Qxc6+ {[%clk 0:02:42.6]} 17... Rd7 {[%clk
0:01:21]} 18. Be3 {[%clk 0:02:28.7]} 18... e5 {[%clk 0:01:18.5]} 19. Qb5 {[%clk
0:02:22.3]} 19... Qe6 {[%clk 0:01:11.4]} 20. Bxb6 {[%clk 0:02:16.7]} 20... axb6
{[%clk 0:01:10.5]} 21. Na4 {[%clk 0:02:08.8]} 21... Bd8 {[%clk 0:01:06.5]} 22.
Rd2 {[%clk 0:01:32.6]} 22... Ke7 {[%clk 0:01:05]} 23. Rad1 {[%clk 0:01:27.8]}
23... Rxd2 {[%clk 0:01:04.3]} 24. Rxd2 {[%clk 0:01:28]} 24... Bc7 {[%clk
0:00:58.2]} 25. Qb4+ {[%clk 0:01:25.7]} 25... Bd6 {[%clk 0:00:42.7]} 26. Qxb6
{[%clk 0:01:25.7]} 26... Rd8 {[%clk 0:00:42.5]} 27. Nc3 {[%clk 0:01:20.5]} 27...
f6 {[%clk 0:00:37.1]} 28. g3 {[%clk 0:01:20.4]} 28... Rb8 {[%clk 0:00:20]} 29.
Qa7+ {[%clk 0:01:12.5]} 29... Qd7 {[%clk 0:00:19.6]} 30. Qxd7+ {[%clk
0:01:11.7]} 30... Kxd7 {[%clk 0:00:20.4]} 31. Ne4 {[%clk 0:01:11.9]} 31... Rb6
{[%clk 0:00:19.5]} 32. a4 {[%clk 0:01:07.3]} 32... Ke6 {[%clk 0:00:18.5]} 33.
Nxd6 {[%clk 0:01:06.8]} 33... Rxd6 {[%clk 0:00:17]} 34. Rxd6+ {[%clk 0:01:06.6]}
34... Kxd6 {[%clk 0:00:17.9]} 35. b4 {[%clk 0:01:05.9]} 1-0

[Event "*** Titled Tuesday Blitz"]
[Site "Chess.com"]
[Date "2020.04.07"]
[Round "8"]
[White "wild_cat99"]
[Black "mbachez"]
[Result "1/2-1/2"]
[WhiteElo "2522"]
[BlackElo "2379"]
[TimeControl "180+1"]
[EndTime "14:32:57 PDT"]
[Termination "Game drawn by agreement"]

1. Nf3 {[%clk 0:03:00.9]} 1... d5 {[%clk 0:02:58.6]} 2. e3 {[%clk 0:03:00.6]}
2... Nf6 {[%clk 0:02:58.1]} 3. c4 {[%clk 0:03:00.2]} 3... g6 {[%clk 0:02:54.2]}
4. cxd5 {[%clk 0:02:57.1]} 4... Nxd5 {[%clk 0:02:53.8]} 5. d4 {[%clk 0:02:57.1]}
5... Bg7 {[%clk 0:02:54]} 6. e4 {[%clk 0:02:56.8]} 6... Nb6 {[%clk 0:02:54]} 7.
Be2 {[%clk 0:02:56.6]} 7... O-O {[%clk 0:02:54.1]} 8. O-O {[%clk 0:02:56]} 8...
Nc6 {[%clk 0:02:53.5]} 9. Be3 {[%clk 0:02:52.7]} 9... Bg4 {[%clk 0:02:51.9]} 10.
e5 {[%clk 0:02:46.2]} 10... Nd5 {[%clk 0:02:50.7]} 11. Nc3 {[%clk 0:02:43.9]}
11... Ncb4 {[%clk 0:02:46.2]} 12. a3 {[%clk 0:02:39.1]} 12... Nxc3 {[%clk
0:02:35.5]} 13. bxc3 {[%clk 0:02:38.5]} 13... Nd5 {[%clk 0:02:35.6]} 14. Qd2
{[%clk 0:02:28.8]} 14... c5 {[%clk 0:02:21.7]} 15. c4 {[%clk 0:02:28.2]} 15...
Nxe3 {[%clk 0:02:20.9]} 16. fxe3 {[%clk 0:02:27.8]} 16... cxd4 {[%clk 0:02:15]}
17. exd4 {[%clk 0:02:28.7]} 17... Bxf3 {[%clk 0:02:14.6]} 18. Bxf3 {[%clk
0:02:28.4]} 18... Bxe5 {[%clk 0:02:13.8]} 19. Rfd1 {[%clk 0:02:27.6]} 19... Bg7
{[%clk 0:02:10]} 20. Bxb7 {[%clk 0:02:27.5]} 20... Rb8 {[%clk 0:02:10.2]} 21.
Bf3 {[%clk 0:02:25.3]} 21... e5 {[%clk 0:02:10.4]} 22. dxe5 {[%clk 0:02:16.1]}
22... Qb6+ {[%clk 0:01:58.3]} 23. Qf2 {[%clk 0:02:13.4]} 23... Bxe5 {[%clk
0:01:56.5]} 24. Qxb6 {[%clk 0:02:12.7]} 24... axb6 {[%clk 0:01:54.5]} 25. Rab1
{[%clk 0:02:07.9]} 25... Rfd8 {[%clk 0:01:53.9]} 26. Bd5 {[%clk 0:02:01.3]}
26... Kg7 {[%clk 0:01:52.6]} 27. Rb5 {[%clk 0:01:57.2]} 27... Bd6 {[%clk
0:01:52.2]} 28. a4 {[%clk 0:01:55]} 28... Bc5+ {[%clk 0:01:52]} 29. Kf1 {[%clk
0:01:55.1]} 29... Ra8 {[%clk 0:01:50.4]} 30. Ra1 {[%clk 0:01:49.7]} 30... Ra5
{[%clk 0:01:48]} 31. Rxa5 {[%clk 0:01:49.8]} 31... bxa5 {[%clk 0:01:47.9]} 32.
Rb1 {[%clk 0:01:50.2]} 32... Rd7 {[%clk 0:01:41.1]} 33. Ke2 {[%clk 0:01:50]}
33... f5 {[%clk 0:01:39.4]} 34. Rb5 {[%clk 0:01:48]} 34... Bb4 {[%clk
0:01:33.8]} 35. Kd3 {[%clk 0:01:48.4]} 35... Kf6 {[%clk 0:01:29.4]} 36. Kd4
{[%clk 0:01:48.9]} 36... f4 {[%clk 0:01:18.5]} 37. Rb6+ {[%clk 0:01:44.9]} 37...
Kf5 {[%clk 0:01:17.5]} 38. Rb5 {[%clk 0:01:38.2]} 38... Kf6 {[%clk 0:01:17]} 39.
c5 {[%clk 0:01:34.4]} 39... g5 {[%clk 0:01:16.1]} 40. c6 {[%clk 0:01:34]} 40...
Rc7 {[%clk 0:01:15.6]} 41. Rb7 {[%clk 0:01:30.8]} 41... Bd6 {[%clk 0:01:12.7]}
42. Rb5 {[%clk 0:01:30.5]} 42... Bb4 {[%clk 0:01:11.5]} 43. h3 {[%clk
0:01:26.7]} 43... h5 {[%clk 0:01:10.8]} 44. Bf3 {[%clk 0:01:26.5]} 44... g4
{[%clk 0:01:07]} 45. hxg4 {[%clk 0:01:27.4]} 45... hxg4 {[%clk 0:01:07]} 46.
Bxg4 {[%clk 0:01:26.9]} 46... Rxc6 {[%clk 0:01:07.1]} 47. Rf5+ {[%clk
0:01:26.9]} 47... Kg6 {[%clk 0:01:07.1]} 48. Rxf4 {[%clk 0:01:26.4]} 48... Kg5
{[%clk 0:01:06.9]} 49. Bf3 {[%clk 0:01:25.4]} 49... Rd6+ {[%clk 0:00:59.4]} 50.
Ke5 {[%clk 0:01:25.5]} 50... Re6+ {[%clk 0:00:54.3]} 51. Kxe6 {[%clk 0:01:23.8]}
51... Kxf4 {[%clk 0:00:54.6]} 52. Kd5 {[%clk 0:01:23.7]} 52... Kg3 {[%clk
0:00:53.1]} 53. Ke4 {[%clk 0:01:20.5]} 53... Be1 {[%clk 0:00:52.8]} 54. Kd3
{[%clk 0:01:19.7]} 54... Bb4 {[%clk 0:00:53]} 1/2-1/2

[Event "*** Titled Tuesday Blitz"]
[Site "Chess.com"]
[Date "2020.04.07"]
[Round "8"]
[White "Sebastian"]
[Black "DrMelekess"]
[Result "1-0"]
[WhiteElo "3005"]
[BlackElo "2717"]
[TimeControl "180+1"]
[EndTime "14:33:02 PDT"]
[Termination "Sebastian won on time"]

1. d4 {[%clk 0:03:00.9]} 1... Nc6 {[%clk 0:02:53.8]} 2. d5 {[%clk 0:03:00.4]}
2... Ne5 {[%clk 0:02:53.5]} 3. f4 {[%clk 0:03:00.8]} 3... Ng6 {[%clk 0:02:53.6]}
4. e4 {[%clk 0:03:01.5]} 4... e5 {[%clk 0:02:53.8]} 5. dxe6 {[%clk 0:03:02]}
5... dxe6 {[%clk 0:02:54]} 6. Qxd8+ {[%clk 0:03:00.4]} 6... Kxd8 {[%clk
0:02:54.9]} 7. Nf3 {[%clk 0:02:49.1]} 7... Nf6 {[%clk 0:02:54.6]} 8. Bd3 {[%clk
0:02:46.7]} 8... Bc5 {[%clk 0:02:53.2]} 9. Nc3 {[%clk 0:02:45.7]} 9... Ke7
{[%clk 0:02:49.7]} 10. f5 {[%clk 0:02:23.6]} 10... Nf8 {[%clk 0:01:55.7]} 11.
Bf4 {[%clk 0:02:23.3]} 11... c6 {[%clk 0:01:47.5]} 12. O-O-O {[%clk 0:02:16.8]}
12... Ng4 {[%clk 0:01:47.2]} 13. Rhe1 {[%clk 0:02:08]} 13... Nf2 {[%clk
0:01:44.1]} 14. Rd2 {[%clk 0:02:07.5]} 14... Nxd3+ {[%clk 0:01:44.2]} 15. Rxd3
{[%clk 0:02:07.4]} 15... b5 {[%clk 0:01:16.3]} 16. Ne5 {[%clk 0:01:54.5]} 16...
Bb7 {[%clk 0:01:13.7]} 17. Red1 {[%clk 0:01:54.8]} 17... Kf6 {[%clk 0:00:16.7]}
18. g4 {[%clk 0:01:38.3]} 18... g5 {[%clk 0:00:14]} 19. Bg3 {[%clk 0:01:36.5]}
19... h5 {[%clk 0:00:13.1]} 20. h3 {[%clk 0:01:31.6]} 20... Rc8 {[%clk
0:00:11.4]} 21. Rf3 {[%clk 0:01:28.6]} 21... Kg7 {[%clk 0:00:08]} 22. fxe6
{[%clk 0:01:25.6]} 22... f6 {[%clk 0:00:08.4]} 23. Nd7 {[%clk 0:01:26]} 23...
Nxe6 {[%clk 0:00:08.5]} 24. Nxc5 {[%clk 0:01:21]} 24... Nxc5 {[%clk 0:00:09.4]}
25. b4 {[%clk 0:01:21.3]} 25... hxg4 {[%clk 0:00:08]} 26. hxg4 {[%clk
0:01:21.6]} 26... Ne6 {[%clk 0:00:05.2]} 27. Rd7+ {[%clk 0:01:20.6]} 27... Kg6
{[%clk 0:00:06.1]} 28. Rxb7 {[%clk 0:01:16.8]} 28... Rh3 {[%clk 0:00:05.6]} 29.
Ne2 {[%clk 0:01:16.4]} 29... c5 {[%clk 0:00:04.7]} 30. Re7 {[%clk 0:01:13.4]}
30... Nd4 {[%clk 0:00:03.6]} 31. Nxd4 {[%clk 0:01:12.3]} 31... cxd4 {[%clk
0:00:04.5]} 32. Re6 {[%clk 0:01:10.5]} 32... Rf8 {[%clk 0:00:02.6]} 33. e5
{[%clk 0:01:10.3]} 33... Kh7 {[%clk 0:00:02.3]} 34. Rexf6 {[%clk 0:01:09.5]} 1-0

[Event "*** Titled Tuesday Blitz"]
[Site "Chess.com"]
[Date "2020.04.07"]
[Round "8"]
[White "Man-Chuk"]
[Black "Anton_Demchenko"]
[Result "0-1"]
[WhiteElo "2764"]
[BlackElo "2956"]
[TimeControl "180+1"]
[EndTime "14:33:04 PDT"]
[Termination "Anton_Demchenko won by resignation"]

1. c4 {[%clk 0:02:59.7]} 1... Nf6 {[%clk 0:03:00.3]} 2. Nc3 {[%clk 0:02:59.4]}
2... d6 {[%clk 0:03:00.8]} 3. e4 {[%clk 0:02:58.9]} 3... e5 {[%clk 0:02:56.1]}
4. d4 {[%clk 0:02:54.9]} 4... exd4 {[%clk 0:02:52.5]} 5. Qxd4 {[%clk 0:02:55.8]}
5... Nc6 {[%clk 0:02:53.1]} 6. Qd2 {[%clk 0:02:56]} 6... g6 {[%clk 0:02:53.5]}
7. b3 {[%clk 0:02:56.2]} 7... Bg7 {[%clk 0:02:53.5]} 8. Bb2 {[%clk 0:02:56.7]}
8... O-O {[%clk 0:02:52.1]} 9. Bd3 {[%clk 0:02:56.7]} 9... Ng4 {[%clk
0:02:49.9]} 10. Nge2 {[%clk 0:02:45.5]} 10... Qh4 {[%clk 0:02:43.4]} 11. Ng3
{[%clk 0:02:18.7]} 11... f5 {[%clk 0:02:31.1]} 12. h3 {[%clk 0:02:06.6]} 12...
Nxf2 {[%clk 0:02:18.3]} 13. Kxf2 {[%clk 0:01:00.1]} 13... fxe4+ {[%clk
0:01:25.9]} 14. Kg1 {[%clk 0:00:59.5]} 14... exd3 {[%clk 0:01:18.5]} 15. Qxd3
{[%clk 0:00:59.7]} 15... Nb4 {[%clk 0:01:01.7]} 16. Qd2 {[%clk 0:00:46.5]} 16...
Qxg3 {[%clk 0:00:34.9]} 17. Ne4 {[%clk 0:00:46.5]} 17... Qf4 {[%clk 0:00:35.3]}
18. Bxg7 {[%clk 0:00:41.4]} 18... Qxd2 {[%clk 0:00:32.7]} 19. Nxd2 {[%clk
0:00:37.5]} 19... Kxg7 {[%clk 0:00:32.7]} 20. Re1 {[%clk 0:00:38.4]} 20... Nc6
{[%clk 0:00:30.8]} 21. Kh2 {[%clk 0:00:38.6]} 21... Bd7 {[%clk 0:00:30.9]} 22.
c5 {[%clk 0:00:39.1]} 22... dxc5 {[%clk 0:00:29.9]} 23. Ne4 {[%clk 0:00:39]}
23... b6 {[%clk 0:00:28.8]} 24. Nc3 {[%clk 0:00:39.3]} 24... Rae8 {[%clk
0:00:28.4]} 25. Rd1 {[%clk 0:00:39.9]} 25... Nd4 {[%clk 0:00:27.6]} 26. Nd5
{[%clk 0:00:39.8]} 26... Re2 {[%clk 0:00:24.3]} 27. Rhf1 {[%clk 0:00:36.7]}
27... Rxf1 {[%clk 0:00:22.7]} 28. Rxf1 {[%clk 0:00:37.6]} 28... Bc6 {[%clk
0:00:22.1]} 29. Nf4 {[%clk 0:00:38.1]} 29... Rxa2 {[%clk 0:00:21.9]} 0-1

[Event "*** Titled Tuesday Blitz"]
[Site "Chess.com"]
[Date "2020.04.07"]
[Round "8"]
[White "Abdimalik_Abdisalimov"]
[Black "stefan_95"]
[Result "1-0"]
[WhiteElo "2847"]
[BlackElo "2638"]
[TimeControl "180+1"]
[EndTime "14:33:05 PDT"]
[Termination "Abdimalik_Abdisalimov won on time"]

1. d4 {[%clk 0:03:00.9]} 1... Nf6 {[%clk 0:02:59.5]} 2. c4 {[%clk 0:03:01.2]}
2... e6 {[%clk 0:03:00]} 3. Nf3 {[%clk 0:03:01.5]} 3... b6 {[%clk 0:02:59.5]} 4.
g3 {[%clk 0:03:01.5]} 4... Ba6 {[%clk 0:02:59.5]} 5. b3 {[%clk 0:03:01.3]} 5...
b5 {[%clk 0:02:58.8]} 6. cxb5 {[%clk 0:03:00.1]} 6... Bxb5 {[%clk 0:02:59.7]} 7.
Bg2 {[%clk 0:03:01]} 7... Bc6 {[%clk 0:03:00.3]} 8. O-O {[%clk 0:03:01.3]} 8...
Bb4 {[%clk 0:02:59.7]} 9. a3 {[%clk 0:03:00.1]} 9... Be7 {[%clk 0:02:59.4]} 10.
Nc3 {[%clk 0:03:00.1]} 10... a5 {[%clk 0:02:59.3]} 11. Bg5 {[%clk 0:02:57.9]}
11... Qc8 {[%clk 0:02:58.4]} 12. Qc2 {[%clk 0:02:57.8]} 12... Qb7 {[%clk
0:02:58.3]} 13. Rfe1 {[%clk 0:02:55.6]} 13... Ra6 {[%clk 0:02:51.7]} 14. e4
{[%clk 0:02:54.8]} 14... Rb6 {[%clk 0:02:51.2]} 15. Nd2 {[%clk 0:02:51.3]} 15...
d5 {[%clk 0:02:40.5]} 16. Bxf6 {[%clk 0:02:48.2]} 16... gxf6 {[%clk 0:02:37.4]}
17. exd5 {[%clk 0:02:49.1]} 17... exd5 {[%clk 0:02:37.1]} 18. Qf5 {[%clk
0:02:43.9]} 18... Bd7 {[%clk 0:02:26.3]} 19. Rxe7+ {[%clk 0:02:35.7]} 19... Kxe7
{[%clk 0:02:20.7]} 20. Nxd5+ {[%clk 0:02:36]} 20... Kd8 {[%clk 0:02:02.3]} 21.
Qf4 {[%clk 0:02:35.7]} 21... Rd6 {[%clk 0:01:45.3]} 22. Nxf6 {[%clk 0:02:32.7]}
22... Qb5 {[%clk 0:01:36.8]} 23. Nfe4 {[%clk 0:02:28.1]} 23... Rg6 {[%clk
0:01:26.5]} 24. Rc1 {[%clk 0:02:26.1]} 24... Qb6 {[%clk 0:01:19.4]} 25. Nc4
{[%clk 0:02:21.9]} 25... Qxd4 {[%clk 0:01:11.2]} 26. Ne5 {[%clk 0:02:21.7]}
26... Nc6 {[%clk 0:00:43.4]} 27. Nxf7+ {[%clk 0:02:18.3]} 27... Kc8 {[%clk
0:00:40.3]} 28. Nxh8 {[%clk 0:02:19.2]} 28... Qxh8 {[%clk 0:00:40]} 29. Nc5
{[%clk 0:02:15.5]} 29... Rf6 {[%clk 0:00:28.9]} 30. Qc4 {[%clk 0:02:08.5]} 30...
Ne5 {[%clk 0:00:16.4]} 31. Qc3 {[%clk 0:02:03.6]} 31... Rd6 {[%clk 0:00:13.5]}
32. f4 {[%clk 0:01:59.4]} 32... Ng6 {[%clk 0:00:12.7]} 33. Qxh8+ {[%clk
0:01:57.3]} 33... Nxh8 {[%clk 0:00:13.6]} 34. Nxd7 {[%clk 0:01:58.2]} 34... Kxd7
{[%clk 0:00:13.9]} 35. Be4 {[%clk 0:01:51.7]} 35... h6 {[%clk 0:00:12.3]} 36.
Rc3 {[%clk 0:01:48.6]} 36... Nf7 {[%clk 0:00:11.8]} 37. Rd3 {[%clk 0:01:48.6]}
37... Rxd3 {[%clk 0:00:10.2]} 38. Bxd3 {[%clk 0:01:48.7]} 38... Kd6 {[%clk
0:00:11.1]} 39. Kf2 {[%clk 0:01:49.2]} 39... Kc5 {[%clk 0:00:11.6]} 40. Ke3
{[%clk 0:01:49.6]} 40... Nd6 {[%clk 0:00:10.4]} 41. g4 {[%clk 0:01:49.8]} 41...
Ne8 {[%clk 0:00:08.3]} 42. g5 {[%clk 0:01:48]} 42... hxg5 {[%clk 0:00:08.3]} 43.
fxg5 {[%clk 0:01:48.9]} 43... Kd5 {[%clk 0:00:08.5]} 44. h4 {[%clk 0:01:49.2]}
44... Ke5 {[%clk 0:00:08.7]} 45. h5 {[%clk 0:01:49.8]} 45... Ng7 {[%clk
0:00:08.9]} 46. h6 {[%clk 0:01:49.4]} 46... Ne6 {[%clk 0:00:02.3]} 47. h7 {[%clk
0:01:49.4]} 1-0